[Event "WWRR IM-Group 2024"]
[Site "Wachtebeke"]
[Date "2024.02.12"]
[Round "5.5"]
[White "Dobrikov, Marco"]
[Black "Victor, Julian"]
[Result "1-0"]
[ECO "D37"]
[WhiteElo "2260"]
[BlackElo "2216"]
[Annotator "TA"]
[PlyCount "67"]
[EventDate "2024.02.12"]
[EventType "tourn"]
[EventCountry "BEL"]
[SourceTitle "playchess.com"]
[Source "ChessBase"]
[SourceQuality "1"]
[TimeControl "40/5400+30:900+30"]

{[%evp 9,66,27,25,26,25,27,26,6,4,10,8,0,0,0,0,-7,0,0,0,-5,0,-6,21,14,18,8,41,46,74,54,100,64,81,85,124,125,177,185,192,185,202,197,432,413,406,368,660,641,643,402,5414,5289,29984,29985,29985,29986,29986,29985,29985]} 1. d4 {[%emt 0:00:06]} Nf6 {[%emt 0:00:11]} 2. c4 {[%emt 0:00:18]} e6 {[%emt 0:00:05]} 3. Nf3 {[%emt 0:00:16]} d5 {[%emt 0:00:06]} 4. Nc3 {[%emt 0:00:18]} a6 {[%emt 0:00:12]} 5. cxd5 {[%emt 0:05:35]} exd5 {[%emt 0:00:07]} 6. Bg5 {[%emt 0:00:07]} Be6 {[%emt 0:00:06]} 7. e3 {[%emt 0:02:42]} Nbd7 {[%emt 0:00:07]} 8. Be2 {[%emt 0:02:27] White has an edge.} c6 {[%emt 0:01:45]} 9. O-O {[%emt 0:00:37]} Bd6 {[%emt 0:00:28]} 10. Rc1 {[%emt 0:04:16]} Qc7 {[%emt 0:06:31]} 11. Bh4 {[%emt 0:04:52]} O-O {[%emt 0:01:19]} 12. Bg3 {[%emt 0:00:42]} Bxg3 {[%emt 0:03:50]} 13. hxg3 {[%emt 0:00:03][%cal Bh2g3,Bg3g4,Bg4g5][%mdl 32]} Rfe8 {[%emt 0:07:50]} 14. Nd2 {[%emt 0:12:45]} g6 {[%emt 0:04:23]} 15. g4 {[%emt 0:05:14]} Nb6 {[%emt 0:12:13]} 16. g5 {[%emt 0:06:10]} Nfd7 {[%emt 0:00:09]} 17. Bd3 {[%emt 0:01:23]} Nf8 {[%emt 0:10:32]} 18. f4 $36 {[%emt 0:03:14][%mdl 2048] Black is under pressure.} Qd7 {[%emt 0:01:50]} 19. Nf3 {[%emt 0:08:15] White is more active.} Bg4 {[%emt 0:00:17] Black is on the road to losing.} (19... Qe7 $14 {should be considered.}) 20. Qd2 {[%emt 0:00:14]} Bxf3 {[%emt 0:00:31]} 21. Rxf3 {[%emt 0:01:15]} Ne6 {[%emt 0:02:58]} 22. Qf2 {[%emt 0:00:47]} c5 {[%emt 0:07:26]} (22... Qe7 $16) 23. Rf1 {[%emt 0:02:32] Qh4 is the strong threat.} cxd4 {[%emt 0:03:12]} 24. exd4 {[%emt 0:00:01] Threatens to win with Rh3.} Rac8 {[%emt 0:01:51]} 25. Qh4 {[%emt 0:03:52] [#] Hoping for f5.} Nxd4 {[%emt 0:10:19]} (25... Qe7 {is a better defense.}) 26. Rh3 $18 {[%emt 0:00:06]} h5 {[%emt 0:03:56]} 27. f5 {[%emt 0:03:49]} ({Less strong is} 27. gxh6 Qe7 $16) 27... Nc6 $2 {[%emt 0:01:16]} (27... Rc4) 28. fxg6 {[%emt 0:00:20]} fxg6 {[%emt 0:00:12]} 29. Bxg6 {[%emt 0:00:19][%cal Oh4h5,Bd3g6,Bg6h7,Bh7f5,Bf5e6][%mdl 32]} Rf8 {[%emt 0:00:20]} (29... Qg4 $142 30. Bxe8 (30. Bxh5 Qxh4 31. Rxh4 Re5 $16) (30. Qxh5 Qxh5 31. Rxh5 Re7 $18) 30... Rxe8) 30. Rxf8+ {[%emt 0:01:51]} Rxf8 {[%emt 0:00:21]} 31. Qxh5 {[%emt 0:00:14][%csl Gh3][%cal Rh5h8] White mates.} Qg7 {[%emt 0:00:21]} 32. Bh7+ {[%emt 0:00:13]} Kh8 {[%emt 0:00:07]} 33. Bf5+ {[%emt 0:00:04]} Kg8 {[%emt 0:00:06]} 34. Be6+ {[%emt 0:00:04] Weighted Error Value: White=0.20 (precise) /Black=0.53.  Mistake:       	---       	Black=4      Inaccurate:     	White=1     	Black=5      OK:         	White=6     	Black=9      Best:        	White=1     	---} 1-0

[Event "WWRR IM-Group 2024"]
[Site "Wachtebeke"]
[Date "2024.02.13"]
[Round "6.1"]
[White "Leenhouts, Koen"]
[Black "Victor, Julian"]
[Result "1-0"]
[ECO "D35"]
[WhiteElo "2433"]
[BlackElo "2216"]
[Annotator "TA"]
[PlyCount "89"]
[EventDate "2024.02.12"]
[EventType "tourn"]
[EventCountry "BEL"]
[SourceTitle "playchess.com"]
[Source "ChessBase"]
[SourceQuality "1"]
[TimeControl "40/5400+30:900+30"]

{[%evp 12,89,25,8,30,20,27,29,29,10,17,19,17,27,27,25,22,13,14,0,0,0,-5,0,0,0,0,0,0,0,0,0,0,0,0,0,0,9,62,0,0,-12,70,-6,114,135,129,133,121,125,122,125,125,126,177,102,117,120,116,102,146,139,163,162,206,200,194,193,228,214,408,407,1124,1042,938,924,5081,5081,5081,5073]} 1. d4 {[%emt 0:03:47]} Nf6 {[%emt 0:00:13]} 2. c4 {[%emt 0:00:07]} e6 {[%emt 0:00:04]} 3. Nc3 {[%emt 0:00:07]} d5 {[%emt 0:00:10]} 4. cxd5 {[%emt 0:00:19]} exd5 {[%emt 0:00:06]} 5. Bg5 {[%emt 0:00:14]} Be7 {[%emt 0:00:34]} 6. e3 {[%emt 0:01:05]} h6 {[%emt 0:00:40]} 7. Bh4 {[%emt 0:00:58]} Bg4 {[%emt 0:00:26]} 8. Qc2 {[%emt 0:03:34]} O-O {[%emt 0:00:21]} 9. h3 {[%emt 0:01:26]} Be6 {[%emt 0:00:19] White has an edge.} 10. Nf3 {[%emt 0:06:47]} Ne8 {[%emt 0:04:19]} 11. Bxe7 {[%emt 0:02:15]} Qxe7 {[%emt 0:00:05]} 12. Bd3 {[%emt 0:00:37]} c6 {[%emt 0:03:31]} 13. O-O {[%emt 0:05:01]} Nd7 {[%emt 0:01:52]} 14. Rae1 {[%emt 0:03:46]} a5 {[%emt 0:16:39]} 15. e4 {[%emt 0:17:03]} dxe4 {[%emt 0:00:13]} 16. Bxe4 {[%emt 0:00:15]} Qd6 {[%emt 0:09:02]} 17. Bh7+ {[%emt 0:11:49]} Kh8 {[%emt 0:00:02] ...g6 is the strong threat.} 18. Bf5 {[%emt 0:00:08]} Bxf5 {[%emt 0:08:31]} 19. Qxf5 {[%emt 0:00:03]} Nef6 {[%emt 0:00:31]} 20. Re2 {[%emt 0:01:36]} g6 {[%emt 0:02:37]} 21. Qc2 {[%emt 0:02:42]} Kg7 {[%emt 0:02:59]} 22. Rfe1 {[%emt 0:01:43]} Rfe8 {[%emt 0:01:44]} 23. Ne5 {[%emt 0:02:33][%cal Bf3e5,Be5c4,Bc4d6][%mdl 32]} Nf8 {[%emt 0:08:07]} (23... Qxd4 $6 24. Rd1 Qxe5 25. Rxe5 Rxe5 26. Rd6 $16) 24. Qb3 {[%emt 0:01:35][%csl LRb7,LRf7]} Re7 {[%emt 0:01:03]} (24... Qc7 $11) 25. Ne4 {[%emt 0:11:03]} (25. Nc4 $14 Rxe2 26. Nxd6 (26. Nxe2 Qb4 $11) 26... Rxe1+ 27. Kh2) 25... Nxe4 $11 {[%emt 0:01:02]} 26. Rxe4 {[%emt 0:00:03]} Nh7 {[%emt 0:07:17]} (26... Rd8 $11) 27. Qc3 {[%emt 0:02:41] White is much more active.} (27. Nc4 $14 Rxe4 28. Nxd6 (28. Rxe4 Qb4 $16) 28... Rxe1+ 29. Kh2) 27... Nf6 {[%emt 0:03:59]} (27... Qd5 $1 $11) 28. Nc4 $1 $36 {[%emt 0:00:29][%csl LRa5,LRd6,LRe7][%mdl 2048] White is really pushing.} Nxe4 {[%emt 0:01:15]} 29. Nxd6 {[%emt 0:01:09]} Nxc3 {[%emt 0:00:05]} 30. Rxe7 {[%emt 0:00:09]} Nxa2 {[%emt 0:02:23]} 31. Rxf7+ {[%emt 0:02:06][%mdl 4096] Endgame. KRN-KRN} ({Weaker is} 31. Nxb7 Ra7 32. Kf1 Nc1 $17) 31... Kg8 {[%emt 0:00:09]} 32. Rxb7 {[%emt 0:00:12]} Rd8 {[%emt 0:00:40] [#]} (32... Nb4 $16 {keeps fighting.} 33. Nf7 h5) 33. Nc4 {[%emt 0:00:31]} ({Better is} 33. Nf7 $1 $18 {[%cal Rf7d8]} Rxd4 34. Nxh6+ Kf8 35. Rf7+ Ke8 36. Rf6) 33... a4 {[%emt 0:04:28]} 34. Ne5 {[%emt 0:00:22]} Rxd4 {[%emt 0:01:39]} 35. Nxc6 {[%emt 0:02:55]} Rd1+ {[%emt 0:03:40]} 36. Kh2 {[%emt 0:00:02]} Rd2 {[%emt 0:00:06] [#]} 37. f4 $1 {[%emt 0:04:23][%cal Bf2f4,Bf4f5,Bf5g6][%mdl 32]} Nc1 {[%emt 0:04:08]} 38. Ne5 {[%emt 0:00:23]} Rd6 {[%emt 0:01:37]} 39. Nf7 {[%emt 0:01:15] Wards off Nd3} Rd4 {[%emt 0:06:15]} 40. Nxh6+ {[%emt 0:01:59]} Kf8 $2 {[%emt 0:00:27]} (40... Kh8 41. f5 gxf5) 41. f5 $18 {[%emt 0:19:05]} Rh4 {[%emt 0:18:10]} (41... Rd6 $142 42. h4 Ra6) 42. Rb8+ {[%emt 0:01:34] White is clearly winning.} Kg7 {[%emt 0:00:45]} 43. Rg8+ {[%emt 0:00:29]} Kh7 {[%emt 0:01:33]} 44. fxg6+ {[%emt 0:01:01]} Kxh6 {[%emt 0:00:12]} 45. Rh8+ {[%emt 0:00:05] Weighted Error Value: White=0.11 (very precise) /Black=0.26 (precise) .  Mistake:       	White=3     	Black=6      Inaccurate:     	---       	Black=1      OK:         	White=15    	Black=15     Best:        	White=4     	Black=2} 1-0

[Event "WWRR IM-Group 2024"]
[Site "Wachtebeke"]
[Date "2024.02.13"]
[Round "6.2"]
[White "Ochs, Daniel Elias"]
[Black "Dobrikov, Marco"]
[Result "0-1"]
[ECO "E10"]
[WhiteElo "2280"]
[BlackElo "2260"]
[Annotator "RC"]
[PlyCount "76"]
[EventDate "2024.02.12"]
[EventType "tourn"]
[EventCountry "BEL"]
[SourceTitle "playchess.com"]
[Source "ChessBase"]
[SourceQuality "1"]
[TimeControl "40/5400+30:900+30"]

1. d4 {[%emt 0:00:07]} Nf6 {[%emt 0:00:04]} 2. c4 {[%emt 0:00:02]} c5 {[%emt 0:00:51]} 3. d5 {[%emt 0:00:05]} b5 {[%emt 0:00:04]} 4. cxb5 {[%emt 0:00:03]} a6 {[%emt 0:00:02]} 5. e3 {[%emt 0:00:18]} e6 {[%emt 0:02:41]} 6. Nc3 {[%emt 0:12:26]} Bb7 {[%emt 0:02:46]} 7. dxe6 {[%emt 0:03:38]} fxe6 {[%emt 0:00:11]} 8. Nf3 {[%emt 0:01:39]} Be7 {[%emt 0:00:46]} 9. Be2 {[%emt 0:01:21]} O-O {[%emt 0:00:27]} 10. O-O {[%emt 0:01:19]} axb5 {[%emt 0:04:50]} 11. Nxb5 {[%emt 0:02:55]} Na6 {[%emt 0:00:15]} 12. b3 {[%emt 0:09:03]} Qb8 {[%emt 0:02:37]} 13. a4 {[%emt 0:05:12]} Ng4 {[%emt 0:06:31]} 14. h3 {[%emt 0:03:04]} Bf6 {[%emt 0:07:47]} 15. Rb1 {[%emt 0:13:08]} Bxf3 {[%emt 0:06:25]} 16. hxg4 {[%emt 0:00:18]} Be4 {[%emt 0:00:17]} 17. Bd3 {[%emt 0:02:11]} Bc6 {[%emt 0:00:20]} 18. Ba3 {[%emt 0:05:22]} Qe5 {[%emt 0:04:13]} 19. Qe2 {[%emt 0:04:51]} Nb4 {[%emt 0:07:46]} 20. f4 {[%emt 0:01:48]} Qb8 {[%emt 0:00:57]} 21. Bxb4 {[%emt 0:00:14]} cxb4 {[%emt 0:00:04]} 22. g5 {[%emt 0:00:23]} Bxb5 {[%emt 0:02:06]} 23. Bxb5 {[%emt 0:04:50]} Bc3 {[%emt 0:00:07]} 24. Bxd7 {[%emt 0:01:10]} Qb6 {[%emt 0:01:29]} 25. Rbd1 {[%emt 0:01:47]} Rad8 {[%emt 0:01:25]} 26. Kh1 {[%emt 0:01:06]} Kh8 {[%emt 0:02:26]} 27. Bb5 {[%emt 0:01:42]} g6 {[%emt 0:02:12]} 28. Bc4 {[%emt 0:03:46]} e5 {[%emt 0:02:15]} 29. Rxd8 {[%emt 0:01:17]} Qxd8 {[%emt 0:03:24]} 30. Qg4 {[%emt 0:02:48]} Qd2 {[%emt 0:07:20]} 31. Qe6 {[%emt 0:01:39]} exf4 {[%emt 0:03:33]} 32. exf4 {[%emt 0:00:26]} Bg7 {[%emt 0:01:37]} 33. a5 {[%emt 0:00:57]} Qd8 {[%emt 0:00:27]} 34. a6 {[%emt 0:00:28]} Re8 {[%emt 0:00:14]} 35. Qd5 {[%emt 0:00:40]} Qc8 {[%emt 0:00:26]} 36. Qf3 {[%emt 0:01:54]} Bd4 {[%emt 0:00:39]} 37. Rd1 {[%emt 0:00:41]} Re3 {[%emt 0:00:06]} 38. Qb7 {[%emt 0:01:14]} Rh3+ {[%emt 0:00:23]} 0-1

[Event "WWRR IM-Group 2024"]
[Site "Wachtebeke"]
[Date "2024.02.13"]
[Round "6.3"]
[White "Hauchamps, Maxime"]
[Black "Matnadze Bujiashvili, Ann"]
[Result "1/2-1/2"]
[ECO "B61"]
[WhiteElo "2267"]
[BlackElo "2364"]
[Annotator "RC"]
[PlyCount "113"]
[EventDate "2024.02.12"]
[EventType "tourn"]
[EventCountry "BEL"]
[SourceTitle "playchess.com"]
[Source "ChessBase"]
[SourceQuality "1"]
[TimeControl "40/5400+30:900+30"]

1. e4 {[%emt 0:00:02]} c5 {[%emt 0:00:08]} 2. Nf3 {[%emt 0:00:06]} d6 {[%emt 0:00:03]} 3. d4 {[%emt 0:00:05]} cxd4 {[%emt 0:00:03]} 4. Nxd4 {[%emt 0:00:06]} Nf6 {[%emt 0:00:04]} 5. Nc3 {[%emt 0:00:04]} Nc6 {[%emt 0:00:02]} 6. Bg5 {[%emt 0:00:06]} Bd7 {[%emt 0:00:04]} 7. Qd2 {[%emt 0:00:07]} Rc8 {[%emt 0:00:03]} 8. f3 {[%emt 0:00:05]} Nxd4 {[%emt 0:00:31]} 9. Qxd4 {[%emt 0:00:05]} Qa5 {[%emt 0:00:09]} 10. h4 {[%emt 0:00:05]} a6 {[%emt 0:00:37]} 11. O-O-O {[%emt 0:03:12]} h6 {[%emt 0:05:19]} 12. Be3 {[%emt 0:00:19]} e5 {[%emt 0:00:48]} 13. Qb6 {[%emt 0:17:51]} Qxb6 {[%emt 0:00:22]} 14. Bxb6 {[%emt 0:00:02]} Be6 {[%emt 0:02:32]} 15. g4 {[%emt 0:03:44]} Be7 {[%emt 0:01:51]} 16. Be2 {[%emt 0:03:48]} O-O {[%emt 0:06:21]} 17. Kb1 {[%emt 0:03:20]} Rc6 {[%emt 0:00:24]} 18. Be3 {[%emt 0:02:41]} b5 {[%emt 0:02:21]} 19. Rd2 {[%emt 0:04:26]} Rfc8 {[%emt 0:04:00]} 20. Nd5 {[%emt 0:08:52]} Bxd5 {[%emt 0:00:32]} 21. exd5 {[%emt 0:00:06]} R6c7 {[%emt 0:00:28]} 22. g5 {[%emt 0:00:48]} Nh5 {[%emt 0:00:46]} 23. Bd3 {[%emt 0:05:19]} g6 {[%emt 0:06:17]} 24. Rg1 {[%emt 0:02:34]} Kh7 {[%emt 0:00:32]} 25. a4 {[%emt 0:02:05]} bxa4 {[%emt 0:03:02]} 26. Rg4 {[%emt 0:03:20]} a3 {[%emt 0:00:53]} 27. b3 {[%emt 0:06:37]} Nf4 {[%emt 0:04:03]} 28. Bxf4 {[%emt 0:03:07]} h5 {[%emt 0:00:05]} 29. Bxe5 {[%emt 0:01:12]} hxg4 {[%emt 0:06:11]} 30. Bd4 {[%emt 0:04:46]} g3 {[%emt 0:05:12]} 31. f4 {[%emt 0:01:57]} Kg8 {[%emt 0:08:43]} 32. Rg2 {[%emt 0:03:44]} Bf8 {[%emt 0:00:51]} 33. h5 {[%emt 0:08:59]} gxh5 {[%emt 0:06:34]} 34. Rxg3 {[%emt 0:03:46]} Bg7 {[%emt 0:03:21]} 35. Bf6 {[%emt 0:01:08]} a2+ {[%emt 0:09:05]} 36. Kxa2 {[%emt 0:01:00]} Rxc2+ {[%emt 0:00:11]} 37. Bxc2 {[%emt 0:00:06]} Rxc2+ {[%emt 0:00:01]} 38. Ka3 {[%emt 0:00:52]} Rd2 {[%emt 0:00:49]} 39. Be7 {[%emt 0:01:26]} Rxd5 {[%emt 0:04:55]} 40. Rh3 {[%emt 0:00:41]} Ra5+ {[%emt 0:17:49]} 41. Kb4 {[%emt 0:15:08]} Rb5+ {[%emt 0:17:31]} 42. Ka3 {[%emt 0:01:38]} Kh7 {[%emt 0:00:00]} 43. Rxh5+ {[%emt 0:00:00]} Kg6 {[%emt 0:00:00]} 44. Rh3 {[%emt 0:00:00]} d5 {[%emt 0:00:00]} 45. b4 {[%emt 0:00:00]} a5 {[%emt 0:00:00]} 46. bxa5 {[%emt 0:00:00]} Rxa5+ {[%emt 0:00:00]} 47. Kb4 {[%emt 0:00:00]} Ra7 {[%emt 0:00:13]} 48. Bd6 {[%emt 0:00:00]} Kf5 {[%emt 0:00:20]} 49. Rh7 {[%emt 0:00:00]} Bd4 {[%emt 0:00:28]} 50. Kb5 {[%emt 0:00:00]} f6 {[%emt 0:04:58]} 51. Rxa7 {[%emt 0:00:00]} Bxa7 {[%emt 0:00:01]} 52. gxf6 {[%emt 0:00:13]} Kxf6 {[%emt 0:00:02]} 53. Be5+ {[%emt 0:00:19]} Kf5 {[%emt 0:00:06]} 54. Kc6 {[%emt 0:01:30]} Ke4 {[%emt 0:00:02]} 55. Bb2 {[%emt 0:01:22]} Bb8 {[%emt 0:00:54]} 56. f5 {[%emt 0:00:12]} Kxf5 {[%emt 0:00:02]} 57. Kxd5 {[%emt 0:10:59]} 1/2-1/2

[Event "WWRR IM-Group 2024"]
[Site "Wachtebeke"]
[Date "2024.02.13"]
[Round "6.4"]
[White "Gloeckler, Christian"]
[Black "De Waele, Warre"]
[Result "1-0"]
[ECO "C88"]
[WhiteElo "2354"]
[BlackElo "2345"]
[Annotator "RC"]
[PlyCount "81"]
[EventDate "2024.02.12"]
[EventType "tourn"]
[EventCountry "BEL"]
[SourceTitle "playchess.com"]
[Source "ChessBase"]
[SourceQuality "1"]
[TimeControl "40/5400+30:900+30"]

1. e4 {[%emt 0:00:02]} e5 {[%emt 0:00:13]} 2. Nf3 {[%emt 0:00:11]} Nc6 {[%emt 0:00:08]} 3. Bb5 {[%emt 0:00:05]} a6 {[%emt 0:00:12]} 4. Ba4 {[%emt 0:00:07]} Nf6 {[%emt 0:00:07]} 5. O-O {[%emt 0:00:12]} Be7 {[%emt 0:00:42]} 6. Re1 {[%emt 0:00:12]} b5 {[%emt 0:00:08]} 7. Bb3 {[%emt 0:00:04]} O-O {[%emt 0:00:26]} 8. h3 {[%emt 0:00:24]} Bb7 {[%emt 0:00:07]} 9. d3 {[%emt 0:00:38]} d5 {[%emt 0:00:09]} 10. exd5 {[%emt 0:00:04]} Nxd5 {[%emt 0:00:06]} 11. Nbd2 {[%emt 0:00:08]} Qd7 {[%emt 0:03:03]} 12. a4 {[%emt 0:00:13]} f6 {[%emt 0:02:31]} 13. axb5 {[%emt 0:00:36]} axb5 {[%emt 0:00:09]} 14. Rxa8 {[%emt 0:00:03]} Rxa8 {[%emt 0:02:17]} 15. c3 {[%emt 0:00:11]} b4 {[%emt 0:17:00]} 16. Ne4 {[%emt 0:06:48]} Na5 {[%emt 0:07:00]} 17. Bc2 {[%emt 0:12:47]} bxc3 {[%emt 0:01:41]} 18. bxc3 {[%emt 0:00:48]} c5 {[%emt 0:07:52]} 19. Bd2 {[%emt 0:03:19]} Nc6 {[%emt 0:01:17]} 20. Ng3 {[%emt 0:02:51]} g6 {[%emt 0:09:48]} 21. h4 {[%emt 0:04:01]} f5 {[%emt 0:05:58]} 22. Bb3 {[%emt 0:07:23]} Kg7 {[%emt 0:02:00]} 23. Qb1 {[%emt 0:04:26]} Ra7 {[%emt 0:00:44]} 24. h5 {[%emt 0:02:14]} Bf6 {[%emt 0:00:43]} 25. h6+ {[%emt 0:02:20]} Kf8 {[%emt 0:00:25]} 26. Ng5 {[%emt 0:04:41]} Nd8 {[%emt 0:02:24]} 27. Bxd5 {[%emt 0:04:01]} Bxg5 {[%emt 0:08:31]} 28. Bxg5 {[%emt 0:12:48]} Qxd5 {[%emt 0:00:10]} 29. f3 {[%emt 0:00:17]} Nf7 {[%emt 0:01:17]} 30. Be3 {[%emt 0:03:37]} Qc6 {[%emt 0:02:18]} 31. Bf2 {[%emt 0:01:16]} Ra8 {[%emt 0:00:06]} 32. Qb2 {[%emt 0:02:31]} Nxh6 {[%emt 0:03:23]} 33. Rxe5 {[%emt 0:03:57]} Ra5 {[%emt 0:00:16]} 34. Bxc5+ {[%emt 0:00:56]} Kg8 {[%emt 0:01:10]} 35. Qe2 {[%emt 0:06:07]} Rxc5 {[%emt 0:02:30]} 36. Re8+ {[%emt 0:00:23]} Kg7 {[%emt 0:00:08]} 37. Qe7+ {[%emt 0:00:14]} Nf7 {[%emt 0:00:11]} 38. Rf8 {[%emt 0:00:41]} Qd5 {[%emt 0:01:20]} 39. c4 {[%emt 0:00:40]} Qd4+ {[%emt 0:02:17]} 40. Kh2 {[%emt 0:00:31]} Bd5 {[%emt 0:01:03]} 41. cxd5 {[%emt 0:15:18]} 1-0

[Event "WWRR IM-Group 2024"]
[Site "Wachtebeke"]
[Date "2024.02.13"]
[Round "6.5"]
[White "Milliet, Sophie"]
[Black "Van Cappellen, Jonas"]
[Result "1-0"]
[ECO "A62"]
[WhiteElo "2384"]
[BlackElo "2212"]
[Annotator "TA"]
[PlyCount "127"]
[EventDate "2024.02.12"]
[EventType "tourn"]
[EventCountry "BEL"]
[SourceTitle "playchess.com"]
[Source "ChessBase"]
[SourceQuality "1"]
[TimeControl "40/5400+30:900+30"]

{[%evp 19,127,21,8,9,15,17,10,8,66,75,71,82,70,66,64,77,68,63,55,32,37,29,20,0,0,0,0,0,7,0,0,0,12,0,0,0,0,0,25,20,24,0,0,0,0,0,0,0,33,0,0,0,25,22,43,22,18,21,65,69,65,72,72,73,73,73,135,126,116,108,130,142,131,155,160,140,136,145,119,0,0,0,0,0,0,0,0,-8,-8,-8,-8,-8,542,506,691,643,593,572,1731,536,12823,7155,29970,29972,29983,29984,29984,29985,29985,29986]} 1. d4 {[%emt 0:00:04]} Nf6 {[%emt 0:00:11]} 2. c4 {[%emt 0:00:02]} e6 {[%emt 0:00:09]} 3. g3 {[%emt 0:00:02]} c5 {[%emt 0:00:07]} 4. d5 {[%emt 0:00:05]} exd5 {[%emt 0:00:07]} 5. cxd5 {[%emt 0:00:03]} d6 {[%emt 0:00:10]} 6. Nc3 {[%emt 0:00:08]} g6 {[%emt 0:00:08]} 7. Bg2 {[%emt 0:00:09]} Bg7 {[%emt 0:00:08]} 8. Nf3 {[%emt 0:00:11]} O-O {[%emt 0:00:10]} 9. O-O {[%emt 0:00:03]} Re8 {[%emt 0:00:06]} 10. Re1 {[%emt 0:00:33]} Nbd7 {[%emt 0:00:54] A62: Modern Benoni: Fianchetto Variation without early ...Nbd7.} 11. a4 {[%emt 0:05:09]} Ng4 {[%emt 0:10:30]} 12. Nd2 $146 {[%emt 0:08:42]} ({Predecessor:} 12. Qb3 a6 13. h3 Nge5 14. Ne4 Qe7 15. Bd2 Rb8 16. Bc3 b6 17. Nxe5 Bxe5 18. Bxe5 Nxe5 {½-½ Campbell,E (2164)-Palladino,M (2248) W-ch WS/M/651 email 2017}) 12... f5 {[%emt 0:17:16]} 13. Nf3 {[%emt 0:01:54]} Nf8 {[%emt 0:22:32]} (13... Ndf6 $11) 14. Bf4 $14 {[%emt 0:15:54]} a6 {[%emt 0:04:23]} 15. Qc1 {[%emt 0:14:55]} Ne5 {[%emt 0:06:48]} 16. Nxe5 {[%emt 0:04:57]} Bxe5 {[%emt 0:00:08]} 17. Bxe5 {[%emt 0:00:19]} Rxe5 {[%emt 0:00:07]} 18. f4 {[%emt 0:08:26]} Re8 {[%emt 0:00:50]} 19. e4 {[%emt 0:00:05]} fxe4 {[%emt 0:04:55]} 20. Nxe4 {[%emt 0:00:29]} Bf5 {[%emt 0:00:23]} 21. Ng5 {[%emt 0:03:34]} Qd7 {[%emt 0:10:15]} 22. Qc3 {[%emt 0:01:55]} Rxe1+ {[%emt 0:04:02]} 23. Rxe1 {[%emt 0:00:04]} (23. Qxe1 {simplifies} Re8 24. Qd2 h6 25. Nf3) 23... Re8 {[%emt 0:00:06]} 24. a5 {[%emt 0:02:32]} Rxe1+ {[%emt 0:06:16]} 25. Qxe1 {[%emt 0:00:02]} Qg7 {[%emt 0:03:25]} 26. Qd2 {[%emt 0:03:09]} Qe7 {[%emt 0:00:53]} 27. h3 {[%emt 0:00:50]} h6 {[%emt 0:00:49]} 28. Nf3 {[%emt 0:00:09]} Bd7 {[%emt 0:03:49]} 29. g4 {[%emt 0:08:13]} Nh7 {[%emt 0:01:27]} 30. g5 {[%emt 0:03:55]} hxg5 {[%emt 0:00:22]} 31. fxg5 {[%emt 0:00:05]} Nf8 {[%emt 0:00:45]} 32. Qf4 {[%emt 0:01:56]} Bf5 {[%emt 0:01:06]} 33. h4 {[%emt 0:01:46]} Bd3 {[%emt 0:03:08]} 34. Qd2 {[%emt 0:03:48]} (34. Kf2 {is interesting.} Bb5 35. Bh3 Qe2+ 36. Kg3) 34... Bf5 {[%emt 0:00:24]} 35. Qf4 {[%emt 0:04:18]} Bd3 {[%emt 0:00:02]} 36. Kh2 {[%emt 0:00:06]} (36. Kf2 {feels hotter.} Qe2+ 37. Kg3 Qe7 38. Bh3) 36... Be2 {[%emt 0:01:02]} 37. Nd2 {[%emt 0:00:59]} Bd3 {[%emt 0:00:33]} 38. Be4 {[%emt 0:00:28]} Bb5 {[%emt 0:00:32]} 39. Kg3 {[%emt 0:07:05]} Kg7 {[%emt 0:00:11]} 40. Nf3 {[%emt 0:01:22]} (40. Kf2 {with more complications.} Qf7 41. Ke3 Qe7 42. Nf3) 40... Be2 {[%emt 0:00:47]} 41. Ng1 {[%emt 0:06:28]} Bb5 {[%emt 0:02:38]} 42. Kf2 {[%emt 0:01:38]} Ba4 {[%emt 0:07:30]} (42... Be8 $142) 43. Ne2 $1 $16 {[%emt 0:05:24]} Bd1 {[%emt 0:00:52]} 44. Ng3 {[%emt 0:03:51]} Nd7 {[%emt 0:02:29]} 45. Ke1 $1 {[%emt 0:01:13]} Bb3 {[%emt 0:00:23] [#]} 46. Kd2 $1 {[%emt 0:00:43]} Qe5 {[%emt 0:01:03]} 47. Qxe5+ {[%emt 0:00:05]} Nxe5 {[%emt 0:00:04]} 48. h5 {[%emt 0:00:12]} gxh5 {[%emt 0:00:31]} 49. Nf5+ {[%emt 0:00:35]} (49. Nxh5+ $16 Kf8 50. Ke3) 49... Kg6 $1 $11 {[%emt 0:00:40]} 50. Nd4+ {[%emt 0:00:53]} (50. Nxd6+ Kxg5 51. Nxb7 Nd7) 50... Kxg5 {[%emt 0:00:03]} 51. Nxb3 {[%emt 0:00:03]} Kf4 {[%emt 0:00:25]} 52. Bh1 {[%emt 0:00:05]} h4 {[%emt 0:00:21]} 53. Nc1 {[%emt 0:00:41]} (53. Ke2 $5 Nc4 $8 54. Bg2 $11) 53... Nc4+ {[%emt 0:02:50]} 54. Kc3 {[%emt 0:00:27]} Nxa5 {[%emt 0:00:44]} 55. Nd3+ $1 {[%emt 0:01:04]} Ke3 $2 {[%emt 0:00:01][%mdl 8192] [#]} (55... Kf5 $11 {and Black has nothing to worry.}) 56. Nxc5 $1 $18 {[%emt 0:00:30]} b5 {[%emt 0:02:03]} 57. Nxa6 {[%emt 0:00:06]} Nc4 {[%emt 0:00:15]} 58. Nc7 {[%emt 0:00:43]} Ne5 {[%emt 0:01:08]} 59. Nxb5 {[%emt 0:00:12]} h3 {[%emt 0:00:25]} 60. Nxd6 {[%emt 0:00:09]} Ng4 {[%emt 0:00:11]} 61. Nc4+ {[%emt 0:00:42]} Kf2 {[%emt 0:00:16]} 62. d6 {[%emt 0:00:08]} Nf6 {[%emt 0:00:13]} 63. Ne5 {[%emt 0:01:52]} Kg1 {[%emt 0:00:20]} 64. Bc6 {[%emt 0:00:13]} 1-0